fUST/lending_fUST_20240329
["ID","MTS","AMOUNT","RATE_DAILY","PERIOD"]
[320861355,1711647054967,-1090.002794,0.00067999,120]
[320861356,1711647054976,-1090.002794,0.00067999,120]
[320861357,1711647054987,-1090.002794,0.00067999,120]
[320861358,1711647054996,-1090.002794,0.00067999,120]
[320861359,1711647055006,-1090.002794,0.00067999,120]
[320861360,1711647055015,-1090.002794,0.00067999,120]
[320861361,1711647055024,-1090.002794,0.00067999,120]
[320861362,1711647055034,-151.0,0.00067999,120]
[320861363,1711647055043,-151.0,0.00067999,120]
[320861364,1711647055053,-151.0,0.00067999,120]
[320861365,1711647055062,-151.0,0.00067999,120]
[320861366,1711647055071,-151.0,0.00067999,120]
[320861367,1711647055079,-500.0,0.00067999,120]
[320861368,1711647055089,-500.0,0.00067999,120]
[320861369,1711647055098,-500.0,0.00067999,120]
[320861370,1711647055108,-500.0,0.00067999,120]
[320861371,1711647055117,-500.0,0.00067999,120]
[320861372,1711647055126,-500.0,0.00067999,120]
[320861373,1711647055135,-500.0,0.00067999,120]
[320861374,1711647055145,-500.0,0.00067999,120]
[320861375,1711647055154,-500.0,0.00067999,120]
[320861376,1711647055163,-500.0,0.00067999,120]
[320861377,1711647055172,-500.0,0.00067999,120]
[320861378,1711647055181,-492.65,0.00067999,120]
[320861379,1711647055190,-1141.02,0.00067999,120]
[320861380,1711647055200,-1141.02,0.00067999,120]
[320861381,1711647055209,-1141.02,0.00067999,120]
[320861382,1711647055218,-1141.02,0.00067999,120]
[320861383,1711647055227,-522.9,0.00067999,120]
[320861384,1711647055236,-522.9,0.00067999,120]
[320861385,1711647055245,-522.9,0.00067999,120]
[320861386,1711647055254,-522.9,0.00067999,120]
[320861387,1711647055263,-522.9,0.00067999,120]
[320861388,1711647055272,-522.9,0.00067999,120]
[320861389,1711647055281,-522.9,0.00067999,120]
[320861390,1711647055290,-522.9,0.00067999,120]
[320861391,1711647055299,-522.9,0.00067999,120]
[320861392,1711647055308,-522.9,0.00067999,120]
[320861393,1711647055317,-522.9,0.00067999,120]
[320861394,1711647055371,-522.9,0.00067999,120]
[320861395,1711647055384,-522.9,0.00067999,120]
[320861396,1711647055393,-522.9,0.00067999,120]
[320861397,1711647055401,-522.9,0.00067999,120]
[320861398,1711647055411,-522.9,0.00067999,120]
[320861399,1711647055419,-522.9,0.00067999,120]
[320861400,1711647055428,-522.9,0.00067999,120]
[320861401,1711647055437,-522.9,0.00067999,120]
[320861402,1711647055445,-523.08,0.00067999,120]
[320861403,1711647055454,-338.5,0.00067999,120]
[320861404,1711647055463,-500.0,0.00067999,120]
[320861405,1711647055472,-189.22704759,0.00067999,120]
[320861406,1711647055480,-500.0,0.00067999,120]
[320861407,1711647055489,-500.0,0.00067999,120]
[320861408,1711647055498,-500.0,0.00067999,120]
[320861409,1711647055506,-500.0,0.00067999,120]
[320861410,1711647055515,-500.0,0.00067999,120]
[320861411,1711647055524,-500.0,0.00067999,120]
[320861412,1711647055533,-500.0,0.00067999,120]
[320861413,1711647055542,-500.0,0.00067999,120]
[320861414,1711647055551,-500.0,0.00067999,120]
[320861415,1711647055560,-500.0,0.00067999,120]
[320861416,1711647055570,-500.0,0.00067999,120]
[320861417,1711647055579,-200.73270704,0.00067999,120]
[320861418,1711647055590,-500.0,0.00067999,120]
[320861419,1711647055599,-500.0,0.00067999,120]
[320861420,1711647055608,-500.0,0.00067999,120]
[320861421,1711647055618,-500.0,0.00067999,120]
[320861422,1711647055627,-500.0,0.00067999,120]
[320861423,1711647055636,-500.0,0.00067999,120]
[320861424,1711647055645,-500.0,0.00067999,120]
[320861425,1711647055653,-500.0,0.00067999,120]
[320861426,1711647055662,-440.02400224,0.00067999,120]
[320861427,1711647055672,-1443.06,0.00067999,2]
[320861428,1711647055681,-1443.06,0.00067999,2]
[320861429,1711647055690,-1443.06,0.00067999,2]
[320861430,1711647055698,-1443.06,0.00067999,2]
[320861431,1711647055710,-1443.06,0.00067999,2]
[320861432,1711647055721,-1443.06,0.00067999,2]
[320861433,1711647055730,-1443.06,0.00067999,2]
[320861434,1711647055740,-506.4,0.00067999,120]
[320861435,1711647055749,-1443.06,0.00067999,2]
[320861436,1711647055759,-1443.06,0.00067999,2]
[320861437,1711647055768,-1443.06,0.00067999,2]
[320861438,1711647055777,-1443.06,0.00067999,2]
[320861439,1711647055787,-1443.06,0.00067999,2]
[320861440,1711647055796,-1443.06,0.00067999,2]
[320861441,1711647055806,-1443.06,0.00067999,2]
[320861442,1711647055815,-1443.06,0.00067999,2]
[320861443,1711647055825,-1443.06,0.00067999,2]
[320861444,1711647055835,-1443.06,0.00067999,2]
[320861445,1711647055847,-1443.06,0.00067999,2]
[320861446,1711647055856,-1443.15050646,0.00067999,2]
[320861447,1711647055865,-500.0,0.00067999,120]
[320861448,1711647055875,-370.48,0.00067999,120]
[320861449,1711647055884,-500.0,0.00067999,120]
[320861450,1711647055893,-598.06,0.00067999,120]
[320861451,1711647055902,-418.81,0.00067999,120]
[320861452,1711647055911,-578.43,0.00067999,120]
[320861453,1711647055921,-578.43,0.00067999,120]
[320861454,1711647055930,-578.43,0.00067999,120]
[320861455,1711647055939,-578.43,0.00067999,120]
[320861456,1711647055950,-578.43,0.00067999,120]
[320861457,1711647055960,-578.43,0.00067999,120]
[320861458,1711647055969,-578.43,0.00067999,120]
[320861459,1711647055978,-578.43,0.00067999,120]
[320861460,1711647055988,-578.63502532,0.00067999,120]
[320861461,1711647055997,-500.0,0.00067999,120]
[320861462,1711647056007,-500.0,0.00067999,120]
[320861463,1711647056016,-625.43,0.00067999,120]
[320861464,1711647056026,-500.0,0.00067999,120]
[320861465,1711647056036,-500.0,0.00067999,120]
[320861466,1711647056046,-500.0,0.00067999,120]
[320861467,1711647056055,-500.0,0.00067999,120]
[320861468,1711647056064,-622.93854019,0.00067999,120]
[320861469,1711647056073,-500.0,0.00067999,120]
[320861470,1711647056082,-500.0,0.00067999,120]
[320861471,1711647056091,-500.0,0.00067999,120]
[320861472,1711647056100,-410.95,0.00067999,120]
[320861473,1711647056109,-777.135025,0.00067999,10]
[320861474,1711647056119,-777.135025,0.00067999,10]
[320861475,1711647056128,-1437.55,0.00067999,120]
[320861476,1711647056137,-1437.55,0.00067999,120]
[320861477,1711647056146,-1437.55,0.00067999,120]
[320861478,1711647056155,-1437.55,0.00067999,120]
[320861479,1711647056165,-1437.55,0.00067999,120]
[320861480,1711647056173,-1437.55,0.00067999,120]
[320861481,1711647056183,-500.0,0.00067999,120]
[320861482,1711647056192,-1437.55,0.00067999,120]
[320861483,1711647056201,-500.0,0.00067999,120]
[320861484,1711647056210,-1437.55,0.00067999,120]
[320861485,1711647056219,-500.0,0.00067999,120]
[320861486,1711647056229,-1437.55,0.00067999,120]
[320861487,1711647056238,-159.31,0.00067999,120]
[320861488,1711647056247,-1437.55,0.00067999,120]
[320861489,1711647056257,-1437.55,0.00067999,120]
[320861490,1711647056266,-1437.55,0.00067999,120]
[320861491,1711647056275,-1437.55,0.00067999,120]
[320861492,1711647056285,-1437.55,0.00067999,120]
[320861493,1711647056294,-1437.55,0.00067999,120]
[320861494,1711647056303,-1437.55,0.00067999,120]
[320861495,1711647056312,-3139.58,0.00067999,120]
[320861496,1711647056321,-1437.55,0.00067999,120]
[320861497,1711647056330,-3139.58,0.00067999,120]
[320861498,1711647056339,-1437.55,0.00067999,120]
[320861499,1711647056397,-3139.58,0.00067999,120]
[320861500,1711647056406,-1437.75,0.00067999,120]
[320861501,1711647056415,-3139.58,0.00067999,120]
[320861502,1711647056425,-3139.58,0.00067999,120]
[320861503,1711647056433,-3139.58,0.00067999,120]
[320861504,1711647056442,-3139.58,0.00067999,120]
[320861505,1711647056451,-3139.58,0.00067999,120]
[320861506,1711647056460,-3139.58,0.00067999,120]
[320861507,1711647056470,-3139.58,0.00067999,120]
[320861508,1711647056479,-500.0,0.00067999,120]
[320861509,1711647056488,-500.0,0.00067999,120]
[320861510,1711647056497,-500.0,0.00067999,120]
[320861511,1711647056506,-3139.58,0.00067999,120]
[320861512,1711647056516,-500.0,0.00067999,120]
[320861513,1711647056524,-3139.58,0.00067999,120]
[320861514,1711647056533,-500.0,0.00067999,120]
[320861515,1711647056542,-3139.58,0.00067999,120]
[320861516,1711647056550,-500.0,0.00067999,120]
[320861517,1711647056559,-3139.58,0.00067999,120]
[320861518,1711647056568,-500.0,0.00067999,120]
[320861519,1711647056577,-3139.58,0.00067999,120]
[320861520,1711647056587,-568.53585635,0.00067999,120]
[320861521,1711647056596,-3139.58,0.00067999,120]
[320861522,1711647056605,-3139.58,0.00067999,120]
[320861523,1711647056614,-3139.58,0.00067999,120]
[320861524,1711647056623,-3139.67532575,0.00067999,120]
[320861525,1711647056632,-494.19,0.00067999,120]
[320861526,1711647056640,-10390.76,0.00067999,120]
[320861527,1711647056649,-10390.76,0.00067999,120]
[320861528,1711647056658,-10390.76,0.00067999,120]
[320861529,1711647056667,-10390.76,0.00067999,120]
[320861530,1711647056676,-10390.76,0.00067999,120]
[320861531,1711647056685,-10390.76,0.00067999,120]
[320861532,1711647056694,-10390.76,0.00067999,120]
[320861533,1711647056703,-10390.76,0.00067999,120]
[320861534,1711647056712,-10390.76,0.00067999,120]
[320861535,1711647056721,-10390.76,0.00067999,120]
[320861536,1711647056734,-10390.76,0.00067999,120]
[320861537,1711647056743,-10390.76,0.00067999,120]
[320861538,1711647056752,-10390.76,0.00067999,120]
[320861539,1711647056761,-10390.76,0.00067999,120]
[320861540,1711647056771,-10390.76,0.00067999,120]
[320861541,1711647056780,-10390.76,0.00067999,120]
[320861542,1711647056789,-500.0,0.00067999,120]
[320861543,1711647056798,-500.0,0.00067999,120]
[320861544,1711647056808,-500.0,0.00067999,120]
[320861545,1711647056817,-500.0,0.00067999,120]
[320861546,1711647056827,-500.0,0.00067999,120]
[320861547,1711647056837,-500.0,0.00067999,120]
[320861548,1711647056847,-521.85,0.00067999,120]
[320861549,1711647056856,-500.0,0.00067999,120]
[320861550,1711647056865,-502.22249172,0.00067999,120]
[320861551,1711647056875,-521.85,0.00067999,120]
[320861552,1711647056884,-500.0,0.00067999,120]
[320861553,1711647056893,-521.85,0.00067999,120]
[320861554,1711647056903,-500.0,0.00067999,120]
[320861555,1711647056913,-521.85,0.00067999,120]
[320861556,1711647056922,-500.0,0.00067999,120]
[320861557,1711647056931,-521.85,0.00067999,120]
[320861558,1711647056940,-362.32,0.00067999,120]
[320861559,1711647056949,-308.57037455,0.00067999,120]
[320861560,1711647056958,-521.85,0.00067999,120]
[320861561,1711647056968,-521.85,0.00067999,120]
[320861562,1711647056976,-521.85,0.00067999,120]
[320861563,1711647056986,-522.05000062,0.00067999,120]
[320861564,1711647056995,-500.0,0.00067999,120]
[320861565,1711647057004,-500.0,0.00067999,120]
[320861566,1711647057013,-500.0,0.00067999,120]
[320861567,1711647057022,-500.0,0.00067999,120]
[320861568,1711647057032,-500.0,0.00067999,120]
[320861569,1711647057041,-500.0,0.00067999,120]
[320861570,1711647057051,-500.0,0.00067999,120]
[320861571,1711647057060,-500.0,0.00067999,120]
[320861572,1711647057069,-500.0,0.00067999,120]
[320861573,1711647057079,-500.0,0.00067999,120]
[320861574,1711647057088,-500.0,0.00067999,120]
[320861575,1711647057097,-277.67,0.00067999,120]
[320861576,1711647057107,-500.0,0.00067999,120]
[320861577,1711647057116,-500.0,0.00067999,120]
[320861578,1711647057125,-500.0,0.00067999,120]
[320861579,1711647057134,-500.0,0.00067999,120]
[320861580,1711647057143,-347.67,0.00067999,120]
[320861581,1711647057153,-6026.07,0.00067999,90]
[320861582,1711647057163,-6026.07,0.00067999,90]
[320861583,1711647057172,-6026.07,0.00067999,90]
[320861584,1711647057181,-6026.07,0.00067999,90]
[320861585,1711647057190,-6026.07,0.00067999,90]
[320861586,1711647057199,-6026.07,0.00067999,90]
[320861587,1711647057208,-6026.07,0.00067999,90]
[320861588,1711647057218,-6026.07,0.00067999,90]
[320861589,1711647057227,-6026.29708825,0.00067999,90]
[320861590,1711647057236,-500.0,0.00067999,120]
[320861591,1711647057246,-500.0,0.00067999,120]
[320861592,1711647057255,-256.02,0.00067999,120]
[320861593,1711647057264,-1731.13,0.00067999,21]
[320861594,1711647057273,-1731.13,0.00067999,21]
[320861595,1711647057282,-1731.13,0.00067999,21]
[320861596,1711647057340,-1731.13,0.00067999,21]
[320861597,1711647057349,-1731.13,0.00067999,21]
[320861598,1711647057358,-1731.13,0.00067999,21]
[320861599,1711647057368,-1731.13,0.00067999,21]
[320861600,1711647057377,-1731.13,0.00067999,21]
[320861601,1711647057386,-500.0,0.00067999,120]
[320861602,1711647057394,-1731.24095045,0.00067999,21]
[320861603,1711647057403,-500.0,0.00067999,120]
[320861604,1711647057412,-500.0,0.00067999,120]
[320861605,1711647057421,-500.0,0.00067999,120]
[320861606,1711647057431,-500.0,0.00067999,120]
[320861607,1711647057440,-278.25786399,0.00067999,120]
[320861608,1711647057450,-500.0,0.00067999,120]
[320861609,1711647057459,-500.0,0.00067999,120]
[320861610,1711647057468,-500.0,0.00067999,120]
[320861611,1711647057477,-500.0,0.00067999,120]
[320861612,1711647057487,-500.0,0.00067999,120]
[320861613,1711647057496,-500.0,0.00067999,120]
[320861614,1711647057505,-537.28418175,0.00067999,120]
[320861615,1711647057514,-563.1,0.00067999,120]
[320861616,1711647057523,-563.1,0.00067999,120]
[320861617,1711647057533,-563.1,0.00067999,120]
[320861618,1711647057542,-563.1,0.00067999,120]
[320861619,1711647057551,-563.1,0.00067999,120]
[320861620,1711647057560,-563.1,0.00067999,120]
[320861621,1711647057569,-563.1,0.00067999,120]
[320861622,1711647057578,-563.1,0.00067999,120]
[320861623,1711647057587,-563.22,0.00067999,120]
[320861624,1711647057596,-500.0,0.00067999,120]
[320861625,1711647057605,-500.0,0.00067999,120]
[320861626,1711647057614,-311.14,0.00067999,120]
[320861627,1711647057623,-1633.26,0.00067999,120]
[320861628,1711647057633,-1633.26,0.00067999,120]
[320861629,1711647057642,-1633.26,0.00067999,120]
[320861630,1711647057651,-1633.26,0.00067999,120]
[320861631,1711647057660,-1633.26,0.00067999,120]
[320861632,1711647057669,-1633.26,0.00067999,120]
[320861633,1711647057678,-1633.26,0.00067999,120]
[320861634,1711647057687,-1633.26,0.00067999,120]
[320861635,1711647057696,-1633.28517361,0.00067999,120]
[320861636,1711647057705,-180.0,0.00067999,120]
[320861637,1711647057714,-157437.2856233,0.00068,120]
[320861638,1711647057723,-155.30193959,0.00068,2]
[320861639,1711647057736,-13194.4788174,0.00068,120]
[320861640,1711647057745,-490405.88,0.00068,60]
[320861641,1711647057757,-217.55431238,0.00068,7]
[320861642,1711647057766,-155.35814826,0.00068,7]
[320861643,1711647057775,-2000.0,0.00068,120]
[320861644,1711647057784,-7385.0,0.00068463,35]
[320861645,1711647057793,-870.9039265,0.00068464,2]
[320861646,1711647057803,-7385.0,0.00068473,35]
[320861647,1711647057812,-7385.0,0.00068483,35]
[320861648,1711647057822,-813.72268831,0.00068491,7]
[320861649,1711647057832,-186.77073307,0.00068491,7]
[320861650,1711647057841,-309.82958832,0.00068491,7]
[320861651,1711647057850,-252.04699562,0.00068491,2]
[320861652,1711647057859,-295.98463445,0.00068491,7]
[320861653,1711647057868,-1518.53587366,0.00068491,7]
[320861654,1711647057877,-211.33899684,0.00068491,7]
[320861655,1711647057886,-158.93402427,0.00068491,7]
[320861656,1711647057895,-1417.46301615,0.00068491,7]
[320861657,1711647057905,-183.65814394,0.00068491,7]
[320861658,1711647057914,-957.86,0.00068492,120]
[320861659,1711647057923,-957.86,0.00068492,120]
[320861660,1711647057932,-957.86,0.00068492,120]
[320861661,1711647057941,-957.86,0.00068492,120]
[320861662,1711647057950,-957.86,0.00068492,120]
[320861663,1711647057959,-957.86,0.00068492,120]
[320861664,1711647057968,-382.4081746,0.00068492,120]
[320861665,1711647058045,-575.4518254,0.00068492,120]
[320861666,1711647058054,-957.86,0.00068492,120]
[320861667,1711647058065,-957.86,0.00068492,120]
[320861668,1711647058074,-305.17104976,0.00068492,120]
[320861669,1711647058086,-262.35952146,0.00068492,120]
[320861670,1711647058299,-221.975282,0.00066641,120]
[320861671,1711647058309,-484.174718,0.00066996,120]
[320861672,1711647058322,-15.825282,0.00066996,120]
[320861673,1711647058332,-484.49347158,0.00067968,120]
[320861674,1711647058344,-15.50652842,0.00067968,120]
[320861675,1711647058352,-449.84,0.00067969,120]
[320861676,1711647058362,-390.32942878,0.00068492,120]
[320861677,1711647058371,-957.86,0.00068492,120]
[320861678,1711647058380,-957.86,0.00068492,120]
[320861679,1711647058389,-957.86,0.00068492,120]
[320861680,1711647058398,-957.86,0.00068492,120]
[320861681,1711647058408,-957.86,0.00068492,120]
[320861682,1711647058417,-957.86,0.00068492,120]
[320861683,1711647058426,-957.94685681,0.00068492,120]
[320861684,1711647058437,-1141.02,0.00068492,120]
[320861685,1711647058446,-1141.02,0.00068492,120]
[320861686,1711647058456,-1141.02,0.00068492,120]
[320861687,1711647058466,-1141.02,0.00068492,120]
[320861688,1711647058475,-1141.02,0.00068492,120]
[320861689,1711647058486,-1141.02,0.00068492,120]
[320861690,1711647058495,-1141.02,0.00068492,120]
[320861691,1711647058505,-1141.02,0.00068492,120]
[320861692,1711647058515,-1141.02,0.00068492,120]
[320861693,1711647058524,-1141.02,0.00068492,120]
[320861694,1711647058534,-1141.02,0.00068492,120]
[320861695,1711647058543,-1141.02,0.00068492,120]
[320861696,1711647058552,-1141.02,0.00068492,120]
[320861697,1711647058562,-1141.02,0.00068492,120]
[320861698,1711647058572,-1141.02,0.00068492,120]
[320861699,1711647058581,-1141.02,0.00068492,120]
[320861700,1711647058590,-1141.13,0.00068492,120]
[320861701,1711647058600,-10390.76,0.00068492,120]
[320861702,1711647058616,-10390.76,0.00068492,120]
[320861703,1711647058634,-883.13925238,0.00068492,120]
[320861704,1711647058655,-5919.91861903,0.00068492,120]
[320861705,1711647058683,-3587.70212859,0.00068492,120]
[320861706,1711647058699,-2657.98870101,0.00068492,120]
[320861707,1711647058752,-604.0,0.00068492,120]
[320861708,1711647058825,-298.0548791,0.00068492,120]
[320861709,1711647058937,162.35798589,0.00033,4]
[320861710,1711647058974,231.71325716,0.00019,2]
[320861711,1711647075879,198.70489464,0.00033,4]
[320861713,1711647612742,7.22386231,0.00033,4]
[320861766,1711648232185,-224.94263042,0.000329,2]
[320861768,1711648232195,-874.60435089,0.00032999,2]
[320861784,1711648238428,-128.02109229,0.00032999,2]
[320861785,1711648238437,-409.59086288,0.00032999,4]
[320861786,1711648238447,-2508.56745488,0.00032999,4]
[320861787,1711648238460,-904.34220381,0.00032999,4]
[320861898,1711648240406,-4040.21817522,0.00032999,4]
[320861901,1711648240416,-345.66121832,0.00033,4]
[320861905,1711648240426,-10868.79387592,0.00033,30]
[320861923,1711648240544,-13904.31205646,0.00033,4]
[320861927,1711648240557,-6558.95435215,0.00033,4]
[320861930,1711648240571,-5166.09455812,0.00033,4]
[320861933,1711648240581,-155.22765072,0.00033,4]
[320861936,1711648240591,-224.94263041,0.00038349,2]
[320861939,1711648240601,-224.94263041,0.00043797,2]
[320861943,1711648240611,-171.725384,0.00044721,2]
[320861946,1711648240621,-196.8345836,0.00044835,2]
[320861949,1711648240630,-167.979067,0.00046675,120]
[320861952,1711648240642,-224.94263041,0.00049246,2]
[320861955,1711648240653,-1046.64881673,0.0005,2]
[320861958,1711648240663,-8488.80713685,0.0005,120]
[320861961,1711648240673,-24900.0,0.00050526,2]
[320861964,1711648240683,-250.0,0.00052534,2]
[320861968,1711648240695,-167.979067,0.00054454,120]
[320861971,1711648240705,-224.94263041,0.00054694,2]
[320861974,1711648240715,-500.0,0.00054793,120]
[320861977,1711648240725,-156.51744269,0.00054793,120]
[320861980,1711648240736,-500.0,0.00054793,120]
[320861983,1711648240747,-458.0,0.00054793,120]
[320861986,1711648240757,-5397.30783804,0.00054794,61]
[320863787,1711648429865,235.09595058,0.00021,2]
[320863789,1711648455894,63013.46405499,0.0001999,2]
[320863790,1711648471138,25820.47462538,0.000249,2]
[320863791,1711648471748,504.12154375,0.00021,2]
[320863792,1711648474696,11714.34674304,0.00021,2]
[320863793,1711648477515,2539.42502597,0.0002,2]
[320863794,1711648487741,504.12154375,0.00021,2]
[320863795,1711648507752,262.64732429,0.00021,2]
[320863796,1711648523828,262.64732429,0.00021,2]
[320863797,1711648543760,262.64732429,0.00021,2]
[320863798,1711648561779,262.64732429,0.00021,2]
[320863799,1711648577771,262.64732429,0.00021,2]
[320863800,1711648597778,262.64732429,0.00021,2]
[320863801,1711648619904,262.64732429,0.00021,2]
[320863802,1711648641777,262.64732429,0.00021,2]
[320863803,1711648661814,262.64732429,0.00021,2]
[320863804,1711648683785,323.00400608,0.00021,2]
[320863805,1711648986738,885.69481658,0.0002079,2]
[320863806,1711649007108,19075.56723381,0.00021,2]
[320863807,1711649019106,7107.82358604,0.0002079,2]
[320863812,1711649220760,2809.84157057,0.00020582,2]
[320863813,1711649224964,155.0,0.00020581,2]
[320863814,1711649225143,155.0,0.00020581,2]
[320863815,1711649333247,262.46257315,0.00020581,2]
[320863816,1711649340143,15996.39482742,0.00020581,2]
[320863817,1711649345552,155.0,0.0002058,2]
[320863818,1711649353986,262.46257315,0.00020581,2]
[320863819,1711649358100,15996.39482742,0.00020581,2]
[320863826,1711649378118,15996.39482742,0.00020581,2]
[320863827,1711649393878,262.64732429,0.00020581,2]
[320863828,1711649394108,2010.70249089,0.00020581,2]
[320863829,1711649409872,205.68487411,0.00020581,2]
[320863834,1711649432420,-155.0,0.00030508,4]
[320863835,1711649432430,-155.0,0.00030509,2]
[320863836,1711649432440,-155.0,0.0003051,4]
[320863837,1711649432450,-155.0,0.00030511,4]
[320863838,1711649432459,-155.0,0.00030512,4]
[320863839,1711649432469,-166.15113558,0.00030512,4]
[320863842,1711649432489,-272.18426693,0.00030512,4]
[320863843,1711649432499,-155.0,0.00030512,4]
[320863845,1711649432508,-155.0,0.00030513,4]
[320863847,1711649432517,-7453.12783391,0.00030513,4]
[320863849,1711649432527,-1749.77416698,0.00030514,4]
[320863852,1711649432537,-155.35016262,0.00030515,4]
[320863853,1711649432547,-1172.16836996,0.00030516,4]
[320863870,1711649438436,-62524.69739886,0.00030516,4]
[320863871,1711649438445,-500.0,0.00030516,2]
[320863872,1711649438454,-650.83540754,0.00030516,2]
[320863873,1711649438463,-24900.0,0.00030517,2]
[320863874,1711649438473,-171.7046292,0.0003082,2]
[320863875,1711649438483,-158.695474,0.00031896,2]
[320863876,1711649438492,-187.90686932,0.00032799,2]
[320863877,1711649438501,-155.89703315,0.00032896,4]
[320863878,1711649438510,-853.29309694,0.00032899,2]
[320863879,1711649438519,-193.07694713,0.00033,4]
[320863880,1711649438528,-1418.555356,0.0003627,120]
[320863881,1711649438538,-187.90686929,0.00036664,2]
[320863882,1711649438548,-2726.82939396,0.00037,30]
[320863883,1711649438558,-250.0,0.00037633,2]
[320863884,1711649438568,-200.0,0.00037799,2]
[320863885,1711649438577,-319.36573979,0.00039998,4]
[320863886,1711649438586,-560.43965227,0.00039998,4]
[320863887,1711649438595,-305.31148423,0.00039998,4]
[320863888,1711649438604,-314.6804332,0.00039998,4]
[320863889,1711649438615,-205.1816568,0.00039999,4]
[320863890,1711649438625,-40000.0,0.0004,8]
[320863891,1711649438635,-150.0,0.000403,15]
[320863892,1711649438646,-187.90686929,0.00040529,2]
[320863893,1711649438655,-300.0,0.000406,15]
[320863894,1711649438666,-1418.555356,0.00042315,120]
[320863895,1711649438677,-187.90686929,0.00044394,2]
[320863896,1711649438686,-158.695474,0.00047843,2]
[320863897,1711649438695,-187.90686929,0.00048259,2]
[320863898,1711649438704,-1418.555356,0.0004836,120]
[320863899,1711649438713,-16035.34504841,0.00049,30]
[320863900,1711649438723,-450.73535203,0.00049999,120]
[320863901,1711649438731,-500.0,0.00049999,120]
[320863902,1711649438741,-500.0,0.00049999,120]
[320863903,1711649438750,-265.1372965,0.00049999,120]
[320863904,1711649438758,-353.99827844,0.00049999,120]
[320863905,1711649438767,-537.94472521,0.00049999,120]
[320863906,1711649438875,-399.24223577,0.00049999,31]
[320863907,1711649438887,-193.17229372,0.00049999,120]
[320863908,1711649438898,-11002.41164998,0.0005,30]
[320863909,1711649438907,-4308.48799799,0.0005,120]
[320863910,1711649438916,-8488.80713685,0.0005,120]
[320863911,1711649438926,-626.09738088,0.00053792,2]
[320863912,1711649438935,-1418.555356,0.00054404,120]
[320863913,1711649438944,-155.00310006,0.00054792,4]
[320863914,1711649438953,-5192.42564352,0.00054793,4]
[320863915,1711649438963,-375.85748479,0.00054794,120]
[320863916,1711649438972,-500.0,0.00054794,14]
[320863917,1711649438981,-500.0,0.00054794,120]
[320863918,1711649438990,-500.0,0.00054794,120]
[320863919,1711649438999,-500.0,0.00054794,120]
[320863920,1711649439008,-500.0,0.00054794,120]
[320863921,1711649439018,-305.6973971,0.00054794,120]
[320863922,1711649439026,-500.0,0.00054794,120]
[320863923,1711649439036,-500.0,0.00054794,120]
[320863924,1711649439045,-500.0,0.00054794,120]
[320863925,1711649439054,-500.0,0.00054794,120]
[320863926,1711649439063,-500.0,0.00054794,120]
[320863927,1711649439072,-500.0,0.00054794,120]
[320863928,1711649439081,-500.0,0.00054794,120]
[320863929,1711649439089,-500.0,0.00054794,120]
[320863930,1711649439098,-500.0,0.00054794,120]
[320863931,1711649439107,-500.0,0.00054794,120]
[320863932,1711649439116,-500.0,0.00054794,120]
[320863933,1711649439125,-500.0,0.00054794,120]
[320863934,1711649439134,-500.0,0.00054794,120]
[320863935,1711649439142,-500.0,0.00054794,120]
[320863936,1711649439151,-607.70830094,0.00054794,120]